Period,Quarter,"Recipient Name",City,Province,Country,Title,Language,Genre,Date,"Final Value","Original Value",Type,Purpose,Comments
2015-2016,P4,"Vues d'Afrique",Montreal,Quebec,Canada,"Festival international de cin�ma Vues d'Afrique",French,N/A,2015-12-23,17859.00,17859.00,Contribution,"Promotion Program",
2015-2016,P4,"Terres en vues",Montreal,Quebec,Canada,"Festival du film et de la vid�o autochtone de Montr�al 2016",French,N/A,2015-12-23,16166.00,16166.00,Contribution,"Promotion Program",
2015-2016,P4,"Festival International du Film sur l'Art",Montreal,Quebec,Canada,"Festival International du Film sur l'Art 2016",French,N/A,2015-12-23,34608.00,34608.00,Contribution,"Promotion Program",
2015-2016,P4,"A71 Productions Inc.",Toronto,Ontario,Canada,"Portfolio 2015-2016 A71 Productions Inc.",English,Comedy,2016-01-04,15000.00,30000.00,"Recoupable Advance","Development Program","Amended contract signed  04-JAN-16"
2015-2016,P4,"A71 Productions Inc.",Toronto,Ontario,Canada,"Portfolio 2015-2016 A71 Productions Inc.",English,"Drama (Film)",2016-01-04,30000.00,30000.00,"Recoupable Advance","Development Program","Amended contract signed  04-JAN-16"
2015-2016,P4,"9317-3946 Qu�bec inc.",Montreal,Quebec,Canada,"Secret d'hiver",French,"Drama (Film)",2016-01-06,0.00,80000.00,"Recoupable Advance",Mini-treaties,"Amended contract signed  01-MAY-16"
2015-2016,P4,"Shadow Shows Incorporated",Toronto,Ontario,Canada,"Portfolio 2015-2016 Shadow Shows Incorporated",English,"Drama (Film)",2016-01-06,20000.00,35000.00,"Recoupable Advance","Development Program","Amended contract signed  06-JAN-16"
2015-2016,P4,"Shadow Shows Incorporated",Toronto,Ontario,Canada,"Portfolio 2015-2016 Shadow Shows Incorporated",French,"Drama (Film)",2016-01-06,35000.00,35000.00,"Recoupable Advance","Development Program","Amended contract signed  06-JAN-16"
2015-2016,P4,"Vortex Comics Incorporated",Toronto,Ontario,Canada,"Portfolio 2015-2016 Vortex Comics Incorporated",English,Thriller,2016-01-06,15000.00,15000.00,"Recoupable Advance","Development Program",
2015-2016,P4,"Connections Productions Inc.",Bedford,"Nova Scotia",Canada,"Portfolio 2015-2016 Connections Productions Inc.",French,Sci.fi./Fantasy/Tale,2016-01-06,15000.00,15000.00,"Recoupable Advance","Development Program",
2015-2016,P4,"The Film Farm Inc.",Toronto,Ontario,Canada,"Portfolio 2015-2016 The Film Farm Inc.",English,"Drama (Film)",2016-01-07,45000.00,45000.00,"Recoupable Advance","Development Program",
2015-2016,P4,"Films Christal, s.e.c.(Les), agissant par l'interm�diaire de son commandit�, Les Films Christal Inc",Montreal,Quebec,Canada,"Passion d'Augustine (La)",French,"Drama (Film)",2016-01-08,301463.00,305687.00,"Recoupable Advance","Marketing Program","Amended contract signed  30-MAR-15"
2015-2016,P4,"Front des r�alisateurs ind�pendants du Canada (FRIC)",Ottawa,Ontario,Canada,"Programme de promotion et d�veloppement professionnel 15-16",French,N/A,2016-01-11,20000.00,20000.00,Contribution,"Promotion Program",
2015-2016,P4,"YXY Productions Inc.",Burnaby,"British Columbia",Canada,"No Men Beyond This Point",English,Comedy,2016-01-12,22500.00,22500.00,"Recoupable Advance","Marketing Program",
2015-2016,P4,"SongbirdSOS Productions Inc.",Ajax,Ontario,Canada,"Messenger (The)",English,Documentary,2016-01-12,20543.00,20543.00,"Recoupable Advance","Marketing Program",
2015-2016,P4,"Pacific Northwest Pictures Inc.",Vancouver,"British Columbia",Canada,"October Gale",English,Thriller,2016-01-13,141134.00,148091.00,"Recoupable Advance","Marketing Program","Amended contract signed  06-MAY-15"
2015-2016,P4,"Copperheart Entertainment Inc.",Toronto,Ontario,Canada,"Portfolio 2015-2016 Copperheart Entertainment Inc.",English,Comedy,2016-01-13,48978.00,90000.00,"Recoupable Advance","Development Program","Amended contract signed  13-JAN-16"
2015-2016,P4,"Copperheart Entertainment Inc.",Toronto,Ontario,Canada,"Portfolio 2015-2016 Copperheart Entertainment Inc.",English,Sci.fi./Fantasy/Tale,2016-01-13,90000.00,90000.00,"Recoupable Advance","Development Program","Amended contract signed  13-JAN-16"
2015-2016,P4,"V�rit� Films Inc.",Toronto,Ontario,Canada,"Portfolio 2015-2016 Verite Films Inc.",English,Comedy,2016-01-14,15000.00,15000.00,"Recoupable Advance","Development Program",
2015-2016,P4,"10x2y Inc.",Toronto,Ontario,Canada,"Portfolio 2015-2016 10x2y Inc.",English,"Historical Drama",2016-01-14,20000.00,20000.00,"Recoupable Advance","Development Program",
2015-2016,P4,"Productions Festives",Trois-Rivieres,Quebec,Canada,"Elle pis son char",French,Documentary,2016-01-14,1200.00,1200.00,Contribution,"International Marketing Program",
2015-2016,P4,"Raven Banner Releasing Inc.",Toronto,Ontario,Canada,"Date with Miss Fortune (A)",English,"Romantic Comedy",2016-01-15,50000.00,50000.00,"Recoupable Advance","Marketing Program",
2015-2016,P4,"10x2y Inc.",Toronto,Ontario,Canada,"Portfolio 2013-2014 10x2y Inc.",English,"Drama (Film)",2016-01-18,17085.00,75000.00,"Recoupable Advance","Development Program","Amended contract signed  14-NOV-13"
2015-2016,P4,"Zapruder Films Inc.",Toronto,Ontario,Canada,"Portfolio 2015-2016 Zapruder Films Inc.",English,"Historical Drama",2016-01-18,15000.00,15000.00,"Recoupable Advance","Development Program",
2015-2016,P4,"Wreckhouse Productions Inc.","St. John's",Newfoundland/Labrador,Canada,"Portfolio 2015-2016 Wreckhouse Productions Inc.",English,"Drama (Film)",2016-01-18,15000.00,15000.00,"Recoupable Advance","Development Program",
2015-2016,P4,"LGDT-3D INC",Montreal,Quebec,Canada,"Snowtime! (La Guerre des tuques 3D)",French,"Drama (Film)",2016-01-18,25000.00,25000.00,Contribution,"International Marketing Program",
2015-2016,P4,"Original Title One Productions Inc.",Vancouver,"British Columbia",Canada,"""Once There Was a Winter (Formerly """"Winter"""")""",English,Thriller,2016-01-18,150000.00,150000.00,Investment,"Production Program",
2015-2016,P4,"Documentary Organization of Canada",Toronto,Ontario,Canada,"Festival Concierge",English,N/A,2016-01-18,8000.00,8000.00,Contribution,"Promotion Program",
2015-2016,P4,"Atlantic Filmmakers Cooperative Limited",Halifax,"Nova Scotia",Canada,HIFF,English,N/A,2016-01-18,5000.00,5000.00,Contribution,"Promotion Program",
2015-2016,P4,"Balestra Productions Inc.",Ottawa,Ontario,Canada,"Portfolio 2015-2016 Balestra Productions Inc.",French,"Drama (Film)",2016-01-19,15000.00,15000.00,"Recoupable Advance","Development Program",
2015-2016,P4,"Momentum Pictures (Canada), Inc.",Toronto,Ontario,Canada,"Hit By Lightning",English,Comedy,2016-01-21,25419.00,55000.00,"Recoupable Advance","Marketing Program","Amended contract signed  09-DEC-14"
2015-2016,P4,"Manis Film Consultants Inc.",Toronto,Ontario,Canada,"Portfolio 2015-2016 Manis Film Consultants Inc.",English,Action/Adventure,2016-01-21,15000.00,30000.00,"Recoupable Advance","Development Program","Amended contract signed  21-JAN-16"
2015-2016,P4,"Manis Film Consultants Inc.",Toronto,Ontario,Canada,"Portfolio 2015-2016 Manis Film Consultants Inc.",English,"Drama (Film)",2016-01-21,30000.00,30000.00,"Recoupable Advance","Development Program","Amended contract signed  21-JAN-16"
2015-2016,P4,"9285-8463 Qu�bec Inc.",Montreal,Quebec,Canada,"Avant les rues",French,"Drama (Film)",2016-01-21,25000.00,25000.00,Contribution,"International Marketing Program",
2015-2016,P4,"Metropole Films Distribution",Montreal,Quebec,Canada,Autrui,French,"Drama (Film)",2016-01-22,50882.00,60000.00,"Recoupable Advance","Marketing Program","Amended contract signed  17-MAR-15"
2015-2016,P4,"Gestion Id�acom International Inc. (9085-7525 Qu�bec Inc.) ",Montreal,Quebec,Canada,"Pilotes - Les miracul�s du ciel ",French,Documentary,2016-01-26,14000.00,0.00,"Recoupable Advance",Mini-treaties,
2015-2016,P4,"6909060 Canada Inc. (d/b/a Prospector Films)",Montreal,Quebec,Canada,"Portfolio 2015-2016 6909060 Canada Inc.",English,Comedy,2016-01-27,15000.00,45000.00,"Recoupable Advance","Development Program","Amended contract signed  27-JAN-16"
2015-2016,P4,"6909060 Canada Inc. (d/b/a Prospector Films)",Montreal,Quebec,Canada,"Portfolio 2015-2016 6909060 Canada Inc.",English,"Drama (Film)",2016-01-27,45000.00,45000.00,"Recoupable Advance","Development Program","Amended contract signed  27-JAN-16"
2015-2016,P4,"9215-8534 Qu�bec Inc. (Parallaxes)",Saint-Pierre,Quebec,Canada,"Portfolio 2015-2016 9215-8534 Qu�bec Inc. (Parallaxes)",French,Sci.fi./Fantasy/Tale,2016-01-27,15000.00,15000.00,"Recoupable Advance","Development Program",
2015-2016,P4,"Productions Film Plein Coeur Inc.",Montreal,Quebec,Canada,"MES ENNEMIS",French,"Drama (Film)",2016-01-27,738.00,738.00,Contribution,"International Marketing Program",
2015-2016,P4,"Steady Films Inc.",Vancouver,"British Columbia",Canada,"Never Steady, Never Still",English,"Drama (Film)",2016-01-27,250000.00,250000.00,Investment,"Production Program",
2015-2016,P4,"9151-1766 Qu�bec Inc.",Montreal,Quebec,Canada,"Portfolio 2015-2016 9151-1766 Qu�bec Inc.",French,Comedy,2016-01-28,15000.00,15000.00,"Recoupable Advance","Development Program",
2015-2016,P4,"Caravane Films Productions",Chicoutimi,Quebec,Canada,"Festival, March�, Init. de Regard sur le court m�trage 2016",French,N/A,2016-01-28,62159.00,62159.00,Contribution,"Promotion Program",
2015-2016,P4,"6710875 Canada Inc. (faisant affaires sous Nish Media)",Gatineau,Quebec,Canada,"Portfolio 2015-2016 6710875 Canada inc.",French,"Romantic Comedy",2016-01-29,15000.00,15000.00,"Recoupable Advance","Development Program",
2015-2016,P4,"Productions cin�-sc�ne inc.",Quebec,Quebec,Canada,"Portfolio 2015-2016 Productions cin�-sc�ne inc.",French,"Romantic Comedy",2016-01-29,15000.00,15000.00,"Recoupable Advance","Development Program",
2015-2016,P4,"Northern Visions Independent Video & Film Association",Toronto,Ontario,Canada,"Images Festival",English,N/A,2016-01-29,22784.00,22784.00,Contribution,"Promotion Program",
2015-2016,P4,"Triptych Media Inc.",Toronto,Ontario,Canada,"Portfolio 2015-2016 Triptych Media Inc.",English,"Drama (Film)",2016-02-01,15000.00,15000.00,"Recoupable Advance","Development Program",
2015-2016,P4,"Mexican't Productions Inc.",Toronto,Ontario,Canada,Mexican't,English,Comedy,2016-02-01,371016.00,371016.00,Investment,"Production Program",
2015-2016,P4,"Lithium Studios Productions Inc.",Toronto,Ontario,Canada,"I Put A Hit On You",English,Comedy,2016-02-02,9472.00,9472.00,"Recoupable Advance","Marketing Program",
2015-2016,P4,"Sutram Pictures Inc.","Prospect Bay","Nova Scotia",Canada,"Portfolio 2015-2016 Sutram Pictures Inc.",English,Horror,2016-02-02,15000.00,15000.00,"Recoupable Advance","Development Program",
2015-2016,P4,"Item 7 Inc.",Montreal,Quebec,Canada,"Portfolio 2015-2016 Item 7 Inc.",English,"Drama (Film)",2016-02-04,15000.00,165000.00,"Recoupable Advance","Development Program","Amended contract signed  04-FEB-16"
2015-2016,P4,"Item 7 Inc.",Montreal,Quebec,Canada,"Portfolio 2015-2016 Item 7 Inc.",French,"Drama (Film)",2016-02-04,37500.00,165000.00,"Recoupable Advance","Development Program","Amended contract signed  04-FEB-16"
2015-2016,P4,"Item 7 Inc.",Montreal,Quebec,Canada,"Portfolio 2015-2016 Item 7 Inc.",French,"Historical Drama",2016-02-04,61000.00,165000.00,"Recoupable Advance","Development Program","Amended contract signed  04-FEB-16"
2015-2016,P4,"Item 7 Inc.",Montreal,Quebec,Canada,"Portfolio 2015-2016 Item 7 Inc.",French,Musical,2016-02-04,76000.00,165000.00,"Recoupable Advance","Development Program","Amended contract signed  04-FEB-16"
2015-2016,P4,"Item 7 Inc.",Montreal,Quebec,Canada,"Portfolio 2015-2016 Item 7 Inc.",English,Mystery/Crime/Police,2016-02-04,102000.00,165000.00,"Recoupable Advance","Development Program","Amended contract signed  04-FEB-16"
2015-2016,P4,"Item 7 Inc.",Montreal,Quebec,Canada,"Portfolio 2015-2016 Item 7 Inc.",English,Sci.fi./Fantasy/Tale,2016-02-04,165000.00,165000.00,"Recoupable Advance","Development Program","Amended contract signed  04-FEB-16"
2015-2016,P4,"Rhombus Media Inc.",Toronto,Ontario,Canada,"Portfolio 2015-2016 Rhombus Media Inc.",English,Action/Adventure,2016-02-04,28000.00,200000.00,"Recoupable Advance","Development Program","Amended contract signed  04-FEB-16"
2015-2016,P4,"Rhombus Media Inc.",Toronto,Ontario,Canada,"Portfolio 2015-2016 Rhombus Media Inc.",English,"Drama (Film)",2016-02-04,200000.00,200000.00,"Recoupable Advance","Development Program","Amended contract signed  04-FEB-16"
2015-2016,P4,"First Love Films Inc.",Toronto,Ontario,Canada,"Portfolio 2015-2016 First Love Films Inc.",English,Horror,2016-02-04,15000.00,15000.00,"Recoupable Advance","Development Program",
2015-2016,P4,"Motion 58 Entertainment Inc.",Vancouver,"British Columbia",Canada,"Portfolio 2015-2016 Motion 58 Entertainment Inc.",English,Comedy,2016-02-04,15000.00,15000.00,"Recoupable Advance","Development Program",
2015-2016,P4,"Industry Pictures Inc.",Toronto,Ontario,Canada,"Portfolio 2015-2016 Industry Pictures Inc.",English,"Drama (Film)",2016-02-04,15000.00,15000.00,"Recoupable Advance","Development Program",
2015-2016,P4,"Willis Sweete Productions Inc.",Toronto,Ontario,Canada,"Portfolio 2015-2016 Willis Sweete Productions",English,Thriller,2016-02-04,15000.00,15000.00,"Recoupable Advance","Development Program",
2015-2016,P4,"A Film Monkey Production Inc.",Toronto,Ontario,Canada,"Portfolio 2015-2016 A Film Monkey Production Inc.",English,Mystery/Crime/Police,2016-02-04,15000.00,15000.00,"Recoupable Advance","Development Program",
2015-2016,P4,"Fullum Films Inc.",Montreal,Quebec,Canada,"Portfolio 2015-2016 Fullum Films Inc.",French,"Historical Drama",2016-02-04,15000.00,15000.00,"Recoupable Advance","Development Program",
2015-2016,P4,"Viddywell Films Inc.",Toronto,Ontario,Canada,"Portfolio 2015-2016 Viddywell Films Inc.",English,"Drama (Film)",2016-02-04,15000.00,15000.00,"Recoupable Advance","Development Program",
2015-2016,P4,"Aiken Heart Films Inc.",Toronto,Ontario,Canada,"Portfolio 2015-2016 Aiken Heart Films Inc.",English,"Drama (Film)",2016-02-04,15000.00,15000.00,"Recoupable Advance","Development Program",
2015-2016,P4,"Clique Pictures Inc.",Toronto,Ontario,Canada,"Portfolio 2015-2016 Clique Pictures Inc.",English,Thriller,2016-02-04,15000.00,15000.00,"Recoupable Advance","Development Program",
2015-2016,P4,"Tremendous Productions",Toronto,Ontario,Canada,"Portfolio 2015-2016 Tremendous Productions",English,"Drama (Film)",2016-02-04,15000.00,15000.00,"Recoupable Advance","Development Program",
2015-2016,P4,"Realm Productions & Advertising Inc.","St. John","New Brunswick",Canada,"Portfolio 2015-2016 Realm Productions & Advertising Inc.",English,Horror,2016-02-04,15000.00,15000.00,"Recoupable Advance","Development Program",
2015-2016,P4,"Goodbye Productions Inc.",Vancouver,"British Columbia",Canada,"Portfolio 2015-2016 Goodbye Productions Inc.",English,Horror,2016-02-04,15000.00,15000.00,"Recoupable Advance","Development Program",
2015-2016,P4,"Alyson Richards Productions Inc.",Hamilton,Ontario,Canada,"Portfolio 2015-2016 Alyson Richards Productions Inc.",English,Horror,2016-02-04,15000.00,15000.00,"Recoupable Advance","Development Program",
2015-2016,P4,"9086-6351 Qu�bec Inc. (Les films du passeur)","Saint-Paulin ",Quebec,Canada,"Oncle Bernard - L'anti-le�on d'�conomie",French,Documentary,2016-02-04,7500.00,7500.00,"Recoupable Advance","Marketing Program",
2015-2016,P4,"Hoggwild Films Inc.",Victoria,"British Columbia",Canada,"Portfolio 2015-2016 Hoggwild Films Inc.",English,Sci.fi./Fantasy/Tale,2016-02-04,15000.00,15000.00,"Recoupable Advance","Development Program",
2015-2016,P4,"Global Visions Festival Society ",Edmonton,Alberta,Canada,NORTHWESTFEST,English,N/A,2016-02-04,5000.00,5000.00,Contribution,"Promotion Program",
2015-2016,P4,"Hello Destroyer Productions Inc.",Vancouver,"British Columbia",Canada,Destroyer,English,"Drama (Film)",2016-02-05,365000.00,300000.00,Investment,"Production Program","Amended contract signed  27-MAR-15"
2015-2016,P4,"Devonshire Productions Inc.",Toronto,Ontario,Canada,"Portfolio 2015-2016 Devonshire Productions Inc.",English,Thriller,2016-02-05,15000.00,15000.00,"Recoupable Advance","Development Program",
2015-2016,P4,"Crawlspace Films, Inc.","St. John's",Newfoundland/Labrador,Canada,"Portfolio 2015-2016 Crawlspace Films, Inc.",English,Thriller,2016-02-05,15000.00,15000.00,"Recoupable Advance","Development Program",
2015-2016,P4,"Mia Film Inc.",Winnipeg,Manitoba,Canada,Mia,French,"Drama (Film)",2016-02-05,127500.00,127500.00,Contribution,"Micro-Budget Production Program",
2015-2016,P4,"Women In Film & Television Vancouver Society",Vancouver,"British Columbia",Canada,"Vancouver International Women in Film Festival",English,N/A,2016-02-05,3500.00,3500.00,Contribution,"Promotion Program",
2015-2016,P4,"P�riph�ria Productions Inc.",Montreal,Quebec,Canada,"Portfolio 2015-2016 P�riph�ria Films Inc",French,Comedy,2016-02-08,15000.00,15000.00,"Recoupable Advance","Development Program",
2015-2016,P4,"9324-3178 Qu�bec inc.",Montreal,Quebec,Canada,"Un jour mon prince...",French,"Romantic Comedy",2016-02-09,70000.00,70000.00,"Investment, Recoupable Advance",Mini-treaties,
2015-2016,P4,"9324-3178 Qu�bec inc.",Montreal,Quebec,Canada,"Un jour mon prince...",French,"Romantic Comedy",2016-02-09,165000.00,165000.00,"Investment, Recoupable Advance","Production Program",
2015-2016,P4,"Emotion Pictures Incorporated",Halifax,"Nova Scotia",Canada,"Portfolio 2015-2016 Emotion Pictures Incorporated",French,Action/Adventure,2016-02-10,15000.00,35000.00,"Recoupable Advance","Development Program","Amended contract signed  10-FEB-16"
2015-2016,P4,"Emotion Pictures Incorporated",Halifax,"Nova Scotia",Canada,"Portfolio 2015-2016 Emotion Pictures Incorporated",English,"Drama (Film)",2016-02-10,35000.00,35000.00,"Recoupable Advance","Development Program","Amended contract signed  10-FEB-16"
2015-2016,P4,"Mongrel Media Inc.",Toronto,Ontario,Canada,Uvanga,English,"Drama (Film)",2016-02-10,45637.00,57389.00,"Recoupable Advance","Marketing Program","Amended contract signed  20-AUG-14"
2015-2016,P4,"Mongrel Media Inc.",Toronto,Ontario,Canada,"Animal Project  (The)",English,"Drama (Film)",2016-02-10,21382.00,30938.00,"Recoupable Advance","Marketing Program","Amended contract signed  31-JUL-14"
2015-2016,P4,"Mongrel Media Inc.",Toronto,Ontario,Canada,Heartbeat,English,Comedy,2016-02-10,20567.00,20567.00,"Recoupable Advance","Marketing Program",
2015-2016,P4,"9204-8628 Quebec Inc.",Montreal,Quebec,Canada,"Boris sans B�atrice",French,"Drama (Film)",2016-02-10,18500.00,18500.00,Contribution,"International Marketing Program",
2015-2016,P4,"Films S�ville Inc. (Les) / Seville Pictures Inc.",Montreal,Quebec,Canada,Endorphine,French,"Drama (Film)",2016-02-10,1700.00,1700.00,Contribution,"International Marketing Program",
2015-2016,P4,"Storyline Fx Inc.",Winnipeg,Manitoba,Canada,"Freeze Frame Int'l Film Festival For Kids of All Ages",English,N/A,2016-02-10,9345.00,9345.00,Contribution,"Promotion Program",
2015-2016,P4,"On Screen Manitoba ",Winnipeg,Manitoba,Canada,"INPUT 2016 ",English,N/A,2016-02-10,25000.00,25000.00,Contribution,"Promotion Program",
2015-2016,P4,"Canadian Film in the Schools",Toronto,Ontario,Canada,"REEL CANADA and National Canadian Film Day (NCFD)",English,N/A,2016-02-10,100000.00,100000.00,Contribution,"Promotion Program",
2015-2016,P4,"9268-4000 Quebec Inc.",Montreal,Quebec,Canada,BOOST,English,"Drama (Film)",2016-02-11,490000.00,400000.00,Investment,"Production Program","Amended contract signed  15-JUN-15"
2015-2016,P4,"Films Christal, s.e.c.(Les), agissant par l'interm�diaire de son commandit�, Les Films Christal Inc",Montreal,Quebec,Canada,Endorphine,French,"Drama (Film)",2016-02-11,84887.00,84887.00,"Recoupable Advance","Marketing Program",
2015-2016,P4,"9322-5019 Qu�bec Inc.",Montreal,Quebec,Canada,"Memory Is Our Homeland",English,Documentary,2016-02-12,127500.00,120000.00,Contribution,"Micro-Budget Production Program","Amended contract signed  24-NOV-15"
2015-2016,P4,"9269-0791 Qu�bec Inc.",Montreal,Quebec,Canada,"Montr�al la blanche",French,"Drama (Film)",2016-02-12,2700.00,2700.00,Contribution,"International Marketing Program",
2015-2016,P4,"Femmes du cinema, de la television et des m�dias num�riques",Montreal,Quebec,Canada,"The PEI Screenwriters' Bootcamp ",English,N/A,2016-02-12,15000.00,15000.00,Contribution,"Promotion Program",
2015-2016,P4,"9289-7081 Qu�bec inc.",Quebec,Quebec,Canada,"Feuilles Mortes",French,Sci.fi./Fantasy/Tale,2016-02-15,127500.00,120000.00,Contribution,"Micro-Budget Production Program","Amended contract signed  16-SEP-15"
2015-2016,P4,"PUNK Films Inc.",Toronto,Ontario,Canada,"He Hated Pigeons",English,"Drama (Film)",2016-02-15,10000.00,10000.00,Contribution,"International Marketing Program",
2015-2016,P4,"Jane Losa Films Inc.",Montreal,Quebec,Canada,"Portfolio 2015-2016 Jane Losa Films Inc.",French,"Drama (Film)",2016-02-17,15000.00,15000.00,"Recoupable Advance","Development Program",
2015-2016,P4,"Funfilm Distribution Inc.",Montreal,Quebec,Canada,"Rang du lion (Le)",French,"Drama (Film)",2016-02-17,20000.00,20000.00,"Recoupable Advance","Marketing Program",
2015-2016,P4,"Nice Is Cool Films Inc.",Toronto,Ontario,Canada,"Her Friend Adam",English,"Drama (Film)",2016-02-17,961.00,961.00,Contribution,"International Marketing Program",
2015-2016,P4,"On Screen Manitoba ",Winnipeg,Manitoba,Canada,"All Access 2016",English,N/A,2016-02-17,17000.00,17000.00,Contribution,"Promotion Program",
2015-2016,P4,"Jean Of The Joneses Productions Inc.",Mississauga,Ontario,Canada,"Jean of the Joneses",English,Comedy,2016-02-18,267200.00,220000.00,Investment,"Production Program","Amended contract signed  28-OCT-15"
2015-2016,P4,"Jean Of The Joneses Productions Inc.",Mississauga,Ontario,Canada,"Jean of the Joneses",English,Comedy,2016-02-18,9771.00,9771.00,Contribution,"International Marketing Program",
2015-2016,P4,"Sohkeciwan Productions Ltd.","North Vancouver","British Columbia",Canada,"River of Silence",English,"Drama (Film)",2016-02-19,127500.00,120000.00,Contribution,"Micro-Budget Production Program","Amended contract signed  19-NOV-15"
2015-2016,P4,"2033161 Ontario Limited d.b.a. Films We Like",Toronto,Ontario,Canada,Altman,English,Documentary,2016-02-19,40003.00,55704.00,"Recoupable Advance","Marketing Program","Amended contract signed  22-AUG-14"
2015-2016,P4,"Elevation Pictures Corp.",Toronto,Ontario,Canada,Room,English,"Drama (Film)",2016-02-19,1875371.00,1518881.00,"Recoupable Advance","Marketing Program","Amended contract signed  24-NOV-15"
2015-2016,P4,"Productions Nova M�dia Inc.",Rouyn-Noranda,Quebec,Canada,"Arctique :  que nous dit la Terre ?  La science au service du P�le Nord",French,Documentary,2016-02-19,8000.00,0.00,"Recoupable Advance",Mini-treaties,
2015-2016,P4,"Les Productions du Cerf-Volant Inc.",Montreal,Quebec,Canada,"Portfolio 2015-2016 Les Productions du Cerf-Volant Inc.",French,"Drama (Film)",2016-02-19,15000.00,15000.00,"Recoupable Advance","Development Program",
2015-2016,P4,"Pacific Northwest Pictures Inc.",Vancouver,"British Columbia",Canada,"Mountain Men",English,Comedy,2016-02-22,78178.00,82084.00,"Recoupable Advance","Marketing Program","Amended contract signed  16-JAN-15"
2015-2016,P4,"Entertainment One Films Canada Inc.",Toronto,Ontario,Canada,Remember,English,"Drama (Film)",2016-02-23,627181.00,627181.00,"Recoupable Advance","Marketing Program",
2015-2016,P4,"9323-2007 Qu�bec Inc.",Montreal,Quebec,Canada,"Une fille comme moi",French,"Drama (Film)",2016-02-23,127500.00,127500.00,Contribution,"Micro-Budget Production Program",
2015-2016,P4,"Alberta Media Production Industries  Association (AMPIA)",Edmonton,Alberta,Canada,"AMPIA Professional Development Activities",English,N/A,2016-02-23,20000.00,20000.00,Contribution,"Promotion Program",
2015-2016,P4,"Festival du film de l'Outaouais",Montreal,Quebec,Canada,"Festival du film de l'Outaouais 2016 (18e) incluant l'initiative: Talent Canadiens 2016",French,N/A,2016-02-25,26069.00,21069.00,Contribution,"Promotion Program","Amended contract signed  18-SEP-15"
2015-2016,P4,"A71 Entertainment Inc.",Toronto,Ontario,Canada,"Across The Line",English,"Drama (Film)",2016-02-25,95250.00,95250.00,"Recoupable Advance","Marketing Program",
2015-2016,P4,"Pacific Northwest Pictures Inc.",Vancouver,"British Columbia",Canada,"Legend of Barney Thomson (The)",English,Comedy,2016-02-25,130129.00,130129.00,"Recoupable Advance","Marketing Program",
2015-2016,P4,"A71 Entertainment Inc.",Toronto,Ontario,Canada,Numb,English,Thriller,2016-02-25,72889.00,72889.00,"Recoupable Advance","Marketing Program",
2015-2016,P4,"Terrifying Movie Inc.",Halifax,"Nova Scotia",Canada,"Halloween Party",English,Horror,2016-02-25,450000.00,450000.00,Investment,"Production Program",
2015-2016,P4,"9316-5058 Qu�bec inc.",Montreal,Quebec,Canada,"Juste la fin du monde",French,"Drama (Film)",2016-02-26,200000.00,200000.00,"Recoupable Advance",Mini-treaties,
2015-2016,P4,"9316-5058 Qu�bec inc.",Montreal,Quebec,Canada,"Juste la fin du monde",French,"Drama (Film)",2016-02-26,1050000.00,1050000.00,"Recoupable Advance","Production Program",
2015-2016,P4,"Breadwinner Canada Inc.",Toronto,Ontario,Canada,"Breadwinner (The)",English,"Drama (Film)",2016-02-26,1650000.00,1650000.00,Investment,"Production Program",
2015-2016,P4,"9313-4302 Qu�bec inc.",Quebec,Quebec,Canada,Squat,French,"Drama (Film)",2016-02-26,325000.00,325000.00,Investment,"Production Program",
2015-2016,P4,"Max Films M�dia Inc.",Montreal,Quebec,Canada,"Portfolio 2015-2016 Max Films M�dia Inc.",French,"Drama (Film)",2016-02-27,15000.00,15000.00,"Recoupable Advance","Development Program",
2015-2016,P4,"Metropole Films Distribution",Montreal,Quebec,Canada,Brooklyn,English,"Drama (Film)",2016-02-29,479172.00,299904.00,"Recoupable Advance","Marketing Program","Amended contract signed  14-DEC-15"
2015-2016,P4,"Max Films Inc.",Montreal,Quebec,Canada,"Portfolio 2015-2016 Max Films Inc.",English,Comedy,2016-02-29,20200.00,130000.00,"Recoupable Advance","Development Program","Amended contract signed  29-FEB-16"
2015-2016,P4,"Max Films Inc.",Montreal,Quebec,Canada,"Portfolio 2015-2016 Max Films Inc.",English,"Drama (Film)",2016-02-29,89700.00,130000.00,"Recoupable Advance","Development Program","Amended contract signed  29-FEB-16"
2015-2016,P4,"Max Films Inc.",Montreal,Quebec,Canada,"Portfolio 2015-2016 Max Films Inc.",French,"Historical Drama",2016-02-29,130000.00,130000.00,"Recoupable Advance","Development Program","Amended contract signed  29-FEB-16"
2015-2016,P4,"9322-3394 Qu�bec Inc.",Beaconsfield,Quebec,Canada,A,English,"Drama (Film)",2016-02-29,127500.00,120000.00,Contribution,"Micro-Budget Production Program","Amended contract signed  30-SEP-15"
2015-2016,P4,"Forum Films (Coeur) Inc.",Montreal,Quebec,Canada,"C'est le coeur qui meurt en dernier",French,"Drama (Film)",2016-02-29,1450000.00,1450000.00,Investment,"Production Program",
2015-2016,P4,"KRH film Inc.",Montreal,Quebec,Canada,Touched,English,Mystery/Crime/Police,2016-02-29,300000.00,300000.00,"Investment, Recoupable Advance","Production Program",
2015-2016,P4,"Mission Y�ti inc.",St-Augustin-Desmaure,Quebec,Canada,"Mission Y�ti",French,Action/Adventure,2016-03-02,1020000.00,950000.00,"Investment, Recoupable Advance","Production Program","Amended contract signed  03-SEP-15"
2015-2016,P4,"Topsail Development Limited",Halifax,"Nova Scotia",Canada,"Portfolio 2014-2015 Topsail Development Limited",English,Comedy,2016-03-02,16800.00,19600.00,"Recoupable Advance","Development Program","Amended contract signed  07-JAN-15"
2015-2016,P4,"Northwood Productions Inc.",Toronto,Ontario,Canada,"Grizzlies (The)",English,"Drama (Film)",2016-03-02,500000.00,500000.00,"Recoupable Advance","Production Program",
2015-2016,P4,"Screen Siren Pictures Inc.",Vancouver,"British Columbia",Canada,"Indian Horse",English,"Drama (Film)",2016-03-02,240000.00,240000.00,"Recoupable Advance","Production Program",
2015-2016,P4,"Motel Pictures Inc.",Toronto,Ontario,Canada,"Other Half (The)",English,"Drama (Film)",2016-03-02,10000.00,10000.00,Contribution,"International Marketing Program",
2015-2016,P4,"Production Ville-Marie inc.",Montreal,Quebec,Canada,VILLE-MARIE,French,"Drama (Film)",2016-03-02,528.00,528.00,Contribution,"International Marketing Program",
2015-2016,P4,"Rock and Gold Productions Inc.",Regina,Saskatchewan,Canada,"Land of Rock and Gold (The)",English,"Drama (Film)",2016-03-03,127500.00,120000.00,Contribution,"Micro-Budget Production Program","Amended contract signed  04-DEC-15"
2015-2016,P4,"Cardinal Pictures Inc.",Toronto,Ontario,Canada,Cardinal,English,"Drama (Film)",2016-03-03,127500.00,120000.00,Contribution,"Micro-Budget Production Program","Amended contract signed  20-OCT-15"
2015-2016,P4,"Funfilm Distribution Inc.",Montreal,Quebec,Canada,"Avant les rues",French,"Drama (Film)",2016-03-03,30000.00,30000.00,"Recoupable Advance","Marketing Program",
2015-2016,P4,"Films Christal, s.e.c.(Les), agissant par l'interm�diaire de son commandit�, Les Films Christal Inc",Montreal,Quebec,Canada,"Chasse-Galerie, La l�gende",French,"Drama (Film)",2016-03-03,414577.00,414577.00,"Recoupable Advance","Marketing Program",
2015-2016,P4,"Films Christal, s.e.c.(Les), agissant par l'interm�diaire de son commandit�, Les Films Christal Inc",Montreal,Quebec,Canada,"Mauvaises herbes (Les)",French,Comedy,2016-03-03,170817.00,170817.00,"Recoupable Advance","Marketing Program",
2015-2016,P4,"Zone3-VI Inc.",Montreal,Quebec,Canada,"Go�t d'un pays (Le)",French,Documentary,2016-03-03,125000.00,125000.00,Investment,"Theatrical Documentary Program",
2015-2016,P4,"Mongrel Media Inc.",Toronto,Ontario,Canada,Brooklyn,English,"Drama (Film)",2016-03-04,2190000.00,1428000.00,"Recoupable Advance","Marketing Program","Amended contract signed  09-DEC-15"
2015-2016,P4,"Search Engine Films Inc.",Toronto,Ontario,Canada,"Coconut Hero",English,Comedy,2016-03-04,31969.00,31969.00,"Recoupable Advance","Marketing Program",
2015-2016,P4,"Beaver's Ridge Productions Inc.",Toronto,Ontario,Canada,"How To Plan An Orgy In A Small Town",English,Comedy,2016-03-04,5000.00,5000.00,Contribution,"International Marketing Program",
2015-2016,P4,"New Real Films Inc.",Toronto,Ontario,Canada,"Born To Be Blue at SXSW",English,"Drama (Film)",2016-03-04,5000.00,5000.00,Contribution,"International Marketing Program",
2015-2016,P4,"Grant Street Productions Ltd.",Vancouver,"British Columbia",Canada,"Corporation II (The)",English,Documentary,2016-03-04,400000.00,400000.00,Investment,"Theatrical Documentary Program",
2015-2016,P4,"Winnipeg Film Group Inc.",Winnipeg,Manitoba,Canada,"Gimme Some Truth Documentary Festival",English,N/A,2016-03-04,3500.00,3500.00,Contribution,"Promotion Program",
2015-2016,P4,"The Death and Life of John F. Donovan Inc.",Montreal,Quebec,Canada,"Death and Life of John F. Donovan (The)",English,"Drama (Film)",2016-03-07,794399.00,794399.00,"Recoupable Advance","Production Program",
2015-2016,P4,"Elevation Pictures Corp.",Toronto,Ontario,Canada,Regression,English,Thriller,2016-03-08,195593.00,195593.00,"Recoupable Advance","Marketing Program",
2015-2016,P4,"Productions Caramel Film Inc.",Montreal,Quebec,Canada,"Gut Instinct",English,Mystery/Crime/Police,2016-03-08,126028.00,126028.00,"Recoupable Advance","Production Program",
2015-2016,P4,"9335-2631 Qu�bec Inc.",Montreal,Quebec,Canada,D�rive,French,"Drama (Film)",2016-03-08,400000.00,400000.00,Investment,"Production Program",
2015-2016,P4,"Forlorn Hope Productions Inc.",Vancouver,"British Columbia",Canada,Juggernaut,English,Mystery/Crime/Police,2016-03-08,250000.00,250000.00,Investment,"Production Program",
2015-2016,P4,"Input Calgary 2016 Society",Calgary,Alberta,Canada,"FCTMN 2015-2016",French,N/A,2016-03-08,15000.00,15000.00,Contribution,"Promotion Program",
2015-2016,P4,"Canadian Film in the Schools",Toronto,Ontario,Canada,"REEL CANADA: Canadian Film in the Schools and the National Canadian Film Day",English,N/A,2016-03-09,149113.00,129113.00,Contribution,"Promotion Program","Amended contract signed  15-JUL-15"
2015-2016,P4,"Mongrel Media Inc.",Toronto,Ontario,Canada,"Every Thing Will Be Fine",English,"Drama (Film)",2016-03-09,46613.00,46613.00,"Recoupable Advance","Marketing Program",
2015-2016,P4,"Manifold Pictures Inc.",Calgary,Alberta,Canada,"Northlander (The)",English,Sci.fi./Fantasy/Tale,2016-03-10,127500.00,120000.00,Contribution,"Micro-Budget Production Program","Amended contract signed  08-SEP-15"
2015-2016,P4,"The Film Farm Inc.",Toronto,Ontario,Canada,"Elena's Serenade",English,Sci.fi./Fantasy/Tale,2016-03-10,59113.00,80800.00,"Recoupable Advance","Development Program","Amended contract signed  25-JAN-11"
2015-2016,P4,"Entertainment One Films Canada Inc.",Toronto,Ontario,Canada,Life,English,"Drama (Film)",2016-03-10,87655.00,87655.00,"Recoupable Advance","Marketing Program",
2015-2016,P4,"Synopsis Films Inc.",Montreal,Quebec,Canada,"�a sent la coupe",French,"Drama (Film)",2016-03-10,1400000.00,1400000.00,"Investment, Recoupable Advance","Production Program",
2015-2016,P4,"The Space Between Productions Inc.",Oakville,Ontario,Canada,"Space Between (The)",English,Comedy,2016-03-11,127500.00,120000.00,Contribution,"Micro-Budget Production Program","Amended contract signed  09-JUL-15"
2015-2016,P4,"Play Your Gender Inc.",Dartmouth,"Nova Scotia",Canada,"Play Your Gender",English,Documentary,2016-03-11,127500.00,120000.00,Contribution,"Micro-Budget Production Program","Amended contract signed  30-SEP-15"
2015-2016,P4,"Mongrel Media Inc.",Toronto,Ontario,Canada,Aloft,English,"Drama (Film)",2016-03-11,124500.00,124500.00,"Recoupable Advance","Marketing Program",
2015-2016,P4,"Serendipity Point Films Inc.",Toronto,Ontario,Canada,"Portfolio 2015-2016 Serendipity Point Films Inc. - 2",English,"Drama (Film)",2016-03-11,83194.00,83194.00,"Recoupable Advance","Development Program",
2015-2016,P4,"Henchmen Productions Inc.",Burnaby,"British Columbia",Canada,Henchmen,English,Comedy,2016-03-11,3000000.00,3000000.00,Investment,"Production Program",
2015-2016,P4,"FilmLoft Media Inc.",Aurora,Ontario,Canada,"Stand Up Man (The)",English,Comedy,2016-03-14,127500.00,120000.00,Contribution,"Micro-Budget Production Program","Amended contract signed  01-OCT-15"
2015-2016,P4,"Grassfire Films Inc.","New Waterford","Nova Scotia",Canada,Werewolf,English,"Drama (Film)",2016-03-14,127500.00,120000.00,Contribution,"Micro-Budget Production Program","Amended contract signed  20-AUG-15"
2015-2016,P4,"Topsail Development Limited",Halifax,"Nova Scotia",Canada,"Portfolio 2015-2016 Topsail Development Limited",English,"Drama (Film)",2016-03-14,19600.00,19600.00,"Recoupable Advance","Development Program",
2015-2016,P4,"Entertainment One Films Canada Inc.",Toronto,Ontario,Canada,"Born To Be Blue",English,"Historical Drama",2016-03-14,236250.00,236250.00,"Recoupable Advance","Marketing Program",
2015-2016,P4,"TA3 Inc.",Montreal,Quebec,Canada,"TRIP A TROIS",French,Comedy,2016-03-14,1350000.00,1350000.00,Investment,"Production Program",
2015-2016,P4,"Bougon Inc",Montreal,Quebec,Canada,"Votez Bougon",French,Comedy,2016-03-15,2050000.00,2050000.00,"Recoupable Advance","Production Program",
2015-2016,P4,"Montefiore Films Inc.",Sudbury,Ontario,Canada,"Portfolio 2015-2016 Montefiore Films Inc.",English,"Drama (Film)",2016-03-15,15000.00,15000.00,"Recoupable Advance","Development Program",
2015-2016,P4,"9174-5018 Qu�bec inc.",Montreal,Quebec,Canada,"Paradis pour tous (Un)",French,Comedy,2016-03-16,10000.00,10000.00,"Recoupable Advance","Marketing Program",
2015-2016,P4,"Anthropocene Films Inc.",Toronto,Ontario,Canada,Anthropocene,English,Documentary,2016-03-16,400000.00,400000.00,Investment,"Theatrical Documentary Program",
2015-2016,P4,"Productions Item 7 - II Inc.",Montreal,Quebec,Canada,"Eye on Juliet (aka Virgin 2.0)",English,"Drama (Film)",2016-03-17,2400000.00,2400000.00,"Recoupable Advance","Production Program",
2015-2016,P4,"Entertainment One Films Canada Inc.",Toronto,Ontario,Canada,"Goon: Last of the Enforcers",English,Comedy,2016-03-17,2277788.00,2277788.00,"Recoupable Advance","Marketing Program",
2015-2016,P4,"Productions BCBC2 Inc.",Outremont,Quebec,Canada,"Bon Cop Bad Cop 2",English,Comedy,2016-03-17,436128.00,436128.00,"Recoupable Advance","Production Program",
2015-2016,P4,"D Films Corporation",Toronto,Ontario,Canada,"Scarehouse (The)",English,Horror,2016-03-18,35498.00,62077.00,"Recoupable Advance","Marketing Program","Amended contract signed  14-AUG-14"
2015-2016,P4,"Item 7 Inc.",Montreal,Quebec,Canada,"Eye on Juliet (aka Virgin 2.0)",English,"Drama (Film)",2016-03-18,0.00,150000.00,"Recoupable Advance","Production Program","Amended contract signed  17-APR-15"
2015-2016,P4,"Jill and Jackfish Productions Inc.",Yellowknife,"North West Territories",Canada,"Sun At Midnight (The)",English,Action/Adventure,2016-03-18,127500.00,120000.00,Contribution,"Micro-Budget Production Program","Amended contract signed  23-SEP-15"
2015-2016,P4,"Foundry Films Inc.",Toronto,Ontario,Canada,"Portfolio 2015-2016 Foundry Films Inc.",English,"Drama (Film)",2016-03-18,24000.00,24000.00,"Recoupable Advance","Development Program",
2015-2016,P4,"Jonathan Joffe Pictures Ltd.",Calgary,Alberta,Canada,"Portfolio 2015-2016 Jonathan Joffe Pictures Ltd.",English,Sci.fi./Fantasy/Tale,2016-03-18,15000.00,15000.00,"Recoupable Advance","Development Program",
2015-2016,P4,"MiiTwin Films Ltd.",Vancouver,"British Columbia",Canada,"Hanging Tree (The)",English,Thriller,2016-03-18,127500.00,127500.00,Contribution,"Micro-Budget Production Program",
2015-2016,P4,"Fathom Media Inc.",Toronto,Ontario,Canada,"My Enemy, My Brother",English,Documentary,2016-03-18,33405.00,33405.00,Investment,"Theatrical Documentary Program",
2015-2016,P4,"Femmes du cinema, de la television et des m�dias num�riques",Montreal,Quebec,Canada,"FAVA Fest",English,N/A,2016-03-18,2500.00,2500.00,Contribution,"Promotion Program",
2015-2016,P4,"Medium Density Fibreboard Films Inc.",Toronto,Ontario,Canada,"How Heavy This Hammer",English,"Drama (Film)",2016-03-21,13468.00,13468.00,Contribution,"International Marketing Program",
2015-2016,P4,"Eyesteelfilm Distribution Inc.",Montreal,Quebec,Canada,"I Am The Blues",English,Documentary,2016-03-21,5000.00,5000.00,Contribution,"International Marketing Program",
2015-2016,P4,"Films S�ville Inc. (Les) / Seville Pictures Inc.",Montreal,Quebec,Canada,"Ego trip (anciennement Perdi an Ayiti)",French,Comedy,2016-03-22,509148.00,516806.00,"Recoupable Advance","Marketing Program","Amended contract signed  08-OCT-15"
2015-2016,P4,"Entertainment One Films Canada Inc.",Toronto,Ontario,Canada,Remember,English,"Drama (Film)",2016-03-22,668661.00,627181.00,"Recoupable Advance","Marketing Program","Amended contract signed  23-FEB-16"
2015-2016,P4,"9337-3868 Quebec Inc.",Montreal,Quebec,Canada,"Ville Neuve",French,"Drama (Film)",2016-03-22,300000.00,300000.00,Investment,"Production Program",
2015-2016,P4,"PCF Hibou le Film Inc.  ",Montreal,Quebec,Canada,Hibou,French,Comedy,2016-03-22,250000.00,250000.00,"Investment, Recoupable Advance","Production Program",
2015-2016,P4,"Hot Docs",Toronto,Ontario,Canada,"Hot Docs 2015-2016 Activities",English,N/A,2016-03-23,350000.00,300000.00,Contribution,"Promotion Program","Amended contract signed  02-JUL-15"
2015-2016,P4,"Fondation Qu�bec cin�ma",Montreal,Quebec,Canada,"GALA DU CIN�MA QU�B�COIS 2016 (18e) incluant les initiatives de promotion des talents qu�b�cois",French,N/A,2016-03-23,197031.00,117031.00,Contribution,"Promotion Program","Amended contract signed  08-JUL-15"
2015-2016,P4,"2445881 Ontario Inc.",Toronto,Ontario,Canada,"Gordon Pinsent Documentary (The)",English,Documentary,2016-03-23,75000.00,75000.00,"Investment, Recoupable Advance","Theatrical Documentary Program",
2015-2016,P4,"Attraction Images inc.",Montreal,Quebec,Canada,"Pieds nus dans l'aube",French,"Drama (Film)",2016-03-23,1600000.00,1600000.00,"Investment, Recoupable Advance","Production Program",
2015-2016,P4,"Black Code Media Inc.",Toronto,Ontario,Canada,"Black Code",English,Documentary,2016-03-24,217500.00,187500.00,Investment,"Theatrical Documentary Program","Amended contract signed  25-MAR-14"
2015-2016,P4,"Incursion Productions Inc.",Vancouver,"British Columbia",Canada,Incursion,English,Thriller,2016-03-24,300000.00,300000.00,Investment,"Production Program",
2015-2016,P4,"9571116 Canada Inc.",Montreal,Quebec,Canada,RADIUS,English,Mystery/Crime/Police,2016-03-24,500000.00,500000.00,Investment,"Production Program",
2015-2016,P4,"Les Films Compass Inc",Montreal,Quebec,Canada,Venus,English,Comedy,2016-03-24,300000.00,300000.00,"Investment, Recoupable Advance","Production Program",
2015-2016,P4,"FIRST WEEKEND CLUB","North Vancouver","British Columbia",Canada,"FWC French Canadian Film & Talent Promotion",English,N/A,2016-03-24,20000.00,20000.00,Contribution,"Promotion Program",
2015-2016,P4,"Small Shack Productions Inc.","St. John's",Newfoundland/Labrador,Canada,Maudie,English,"Drama (Film)",2016-03-29,1750000.00,1650000.00,Investment,"Production Program","Amended contract signed  22-SEP-15"
2015-2016,P4,"White Pine Pictures Inc.",Toronto,Ontario,Canada,"Painted Land: In Search of the Group of Seven",English,Documentary,2016-03-29,32504.00,32504.00,"Recoupable Advance","Marketing Program",
2015-2016,P4,"Mongrel Media Inc.",Toronto,Ontario,Canada,"Forbidden Room (The)",English,"Drama (Film)",2016-03-29,50325.00,50325.00,"Recoupable Advance","Marketing Program",
2015-2016,P4,"Films S�ville Inc. (Les) / Seville Pictures Inc.",Montreal,Quebec,Canada,Race,English,"Drama (Film)",2016-03-29,600000.00,600000.00,"Recoupable Advance","Marketing Program",
2015-2016,P4,"Medium Density Fibreboard Films Inc.",Toronto,Ontario,Canada,"Tales of Two Who Dreamt",English,"Drama (Film)",2016-03-29,8119.00,8119.00,Contribution,"International Marketing Program",
2015-2016,P4,"Drax (Canada) Productions Inc.",Burnaby,"British Columbia",Canada,"9th Life of Louis Drax (The) ",English,"Drama (Film)",2016-03-29,750000.00,750000.00,Investment,"Production Program",
2015-2016,P4,"WIFT-AT Women in Film and Television Inc. ",Halifax,"Nova Scotia",Canada,"Women Making Waves",English,N/A,2016-03-29,2500.00,2500.00,Contribution,"Promotion Program",
2015-2016,P4,"Canadian Filmmakers Festival",Toronto,Ontario,Canada,"Canadian Film Fest",English,N/A,2016-03-29,5000.00,5000.00,Contribution,"Promotion Program",
2015-2016,P4,"Canadian Film Centre",Toronto,Ontario,Canada,"2016 CFC Annual Gala & Auction",English,N/A,2016-03-29,5000.00,5000.00,Contribution,"Promotion Program",
2015-2016,P4,"Momentum Pictures (Canada), Inc.",Toronto,Ontario,Canada,"My Awkward Sexual Adventure",English,"Romantic Comedy",2016-03-30,98288.00,49538.00,"Recoupable Advance","Marketing Program","Amended contract signed  24-JUL-12"
2015-2016,P4,"4544196 Canada Inc.","Ile Perrot",Quebec,Canada,WINNIE,English,"Historical Drama",2016-03-30,990143.00,1000000.00,"Recoupable Advance","Production Program","Amended contract signed  28-MAR-11"
2015-2016,P4,"White Pine Pictures Inc.",Toronto,Ontario,Canada,"Guantanamo's Child: Omar Khadr",English,Documentary,2016-03-30,37500.00,37500.00,"Recoupable Advance","Marketing Program",
2015-2016,P4,"Room Productions Inc.",Toronto,Ontario,Canada,Room,English,"Drama (Film)",2016-03-30,16684.00,16684.00,Contribution,"International Marketing Program",
